[Event "10th Cesme Open-A 2024"]
[Site "Cesme"]
[Date "2024.06.30"]
[Round "9"]
[White "Gholami, Aryan"]
[Black "Koksal, Ege"]
[Result "1-0"]
[ECO "D02"]
[WhiteElo "2481"]
[BlackElo "2297"]
[Annotator "TA"]
[PlyCount "73"]
[EventDate "2024.06.23"]
[EventType "swiss"]
[EventCountry "TUR"]
[SourceTitle "playchess.com"]
[Source "ChessBase"]
[SourceQuality "1"]
[TimeControl "5400+30"]

{[%evp 9,73,0,0,0,0,0,-8,-20,3,0,0,-18,-43,-46,-4,0,26,26,143,137,165,214,172,198,260,245,319,235,243,206,355,288,351,357,749,470,788,960,933,1011,1010,1012,983,979,925,866,848,815,755,743,1166,1173,2627,2352,1631,1239,1220,1211,1174,1130,6379,6379,29971,29958,29986,29987]} 1. d4 {[%emt 0:01:00]} d5 {[%emt 0:12:00]} 2. Bf4 {[%emt 0:00:00]} Nf6 {[%emt 0:00:30]} 3. e3 {[%emt 0:00:00]} c5 {[%emt 0:01:30]} 4. Nf3 {[%emt 0:00:30]} Nc6 {[%emt 0:01:30]} 5. Nbd2 {[%emt 0:00:00]} Qb6 {[%emt 0:03:30]} 6. dxc5 {[%emt 0:01:00]} Qxb2 {[%emt 0:00:30]} 7. Rb1 {[%emt 0:00:00]} Qc3 {[%emt 0:00:30][%cal Oe7e6]} 8. Bb5 {[%emt 0:00:00] The position is equal.} e6 {[%emt 0:01:30]} 9. O-O {[%emt 0:00:00]} Be7 {[%emt 0:02:30][%cal Oe8g8]} 10. e4 {[%emt 0:01:00][%cal Be3e4,Be4e5][%mdl 32] [#] Strongly threatening exd5.} O-O {[%emt 0:01:30]} 11. Rb3 {[%emt 0:08:30]} Qa5 {[%emt 0:04:30]} 12. Bd6 $36 {[%emt 0:37:30][%mdl 2048] White is pushing.} Qd8 {[%emt 0:25:30]} (12... Nxe4 13. Nxe4 dxe4 14. Bxc6 Bxd6 15. Qxd6 $14) (12... dxe4 $6 13. Nc4 Qd8 14. Bxc6 bxc6 (14... Bxd6 15. Nxd6 bxc6 16. Ne5 $16) 15. Nfe5 Bxd6 16. Nxd6 $16 (16. Nxc6 Bxh2+ 17. Kxh2 Qe8 $11)) 13. Re1 {[%emt 0:09:30]} Re8 {[%emt 0:05:30] White stays focused until the end.} (13... Na5 $11) 14. e5 {[%emt 0:03:30] White has more active pieces.} Nd7 {[%emt 0:00:30]} 15. Bxc6 {[%emt 0:00:30]} bxc6 {[%emt 0:00:30]} 16. Nd4 {[%emt 0:00:00]} Bf8 {[%emt 0:02:30]} (16... Bxd6 {might work better.} 17. cxd6 (17. Nxc6 Qc7 $19) 17... Nxe5) 17. Nxc6 $18 {[%emt 0:00:00] Black is weak on the dark squares} Qh4 {[%emt 0:00:00]} 18. Rb4 {[%emt 0:00:30]} Qh6 {[%emt 0:02:00]} 19. Re3 {[%emt 0:03:30] [#] And now Rh3 would win.} g6 {[%emt 0:00:30]} (19... a5 $142) 20. Rh3 {[%emt 0:04:30]} Qg7 {[%emt 0:00:30]} 21. Rbh4 {[%emt 0:00:00]} Nxc5 $2 {[%emt 0:09:30]} (21... Bb7 22. Na5 (22. Rxh7 Qxh7 23. Rxh7 Kxh7 $18) 22... Bxd6 23. exd6 (23. Nxb7 Bxe5 24. Rxh7 Qxh7 $14) (23. cxd6 Rab8 $18) 23... Nxc5) 22. Qf3 {[%emt 0:06:00] Bxf8 would now be deadly.} Bxd6 {[%emt 0:04:47]} (22... h5 $142 23. Bxf8 Kxf8) 23. Rxh7 {[%emt 0:00:30]} (23. exd6 Qa1+ 24. Nf1 Ba6 $17) 23... Bf8 {[%emt 0:00:14]} 24. Qf6 {[%emt 0:01:30]} Qxh7 {[%emt 0:00:44]} 25. Rxh7 {[%emt 0:00:30]} Kxh7 {[%emt 0:00:15]} 26. Qxf7+ {[%emt 0:00:00]} Bg7 {[%emt 0:00:30]} 27. Qxe8 {[%emt 0:00:00] Threatening mate with Ne7.} Bb7 {[%emt 0:00:30]} 28. Qe7 {[%emt 0:00:30]} Bxc6 {[%emt 0:01:05]} 29. Qxc5 {[%emt 0:00:30]} Rc8 {[%emt 0:00:01]} 30. Nf3 {[%emt 0:00:30]} Bb7 {[%emt 0:00:43]} 31. Ng5+ {[%emt 0:00:30]} Kh6 {[%emt 0:00:45]} 32. Qe3 {[%emt 0:00:30]} Rxc2 {[%emt 0:00:32]} 33. Nxe6+ {[%emt 0:01:30]} Kh7 {[%emt 0:00:00]} 34. h4 {[%emt 0:01:30]} (34. Qxa7 $2 Rc1#) 34... d4 {[%emt 0:03:33]} 35. Qxd4 {[%emt 0:00:30] Qd7 would kill now.} Rc1+ {[%emt 0:02:38]} 36. Kh2 {[%emt 0:00:30]} Rc7 {[%emt 0:00:30]} 37. Nxc7 {[%emt 0:00:00] Weighted Error Value: White=0.32/Black=0.37.  Mistake:       	---       	Black=5      Inaccurate:     	White=1     	Black=3      OK:         	White=5     	Black=7      Best:        	White=3     	Black=1} 1-0

[Event "10th Cesme Open-A 2024"]
[Site "Cesme"]
[Date "2024.06.30"]
[Round "9"]
[White "Isik, Alparslan"]
[Black "Fromm, Marius"]
[Result "1-0"]
[ECO "D24"]
[WhiteElo "2469"]
[BlackElo "2465"]
[Annotator "TA"]
[PlyCount "71"]
[EventDate "2024.06.23"]
[EventType "swiss"]
[EventCountry "TUR"]
[SourceTitle "playchess.com"]
[Source "ChessBase"]
[SourceQuality "1"]
[TimeControl "5400+30"]

{[%evp 9,71,18,46,51,39,35,45,50,45,33,52,21,21,20,20,14,43,33,28,37,38,9,7,0,51,-15,-12,0,0,-29,75,0,44,35,77,105,100,100,95,52,67,66,101,0,0,-64,-72,-70,-83,-91,0,0,0,0,0,0,67,0,240,247,396,340,438,360]} 1. d4 {[%emt 0:01:00]} Nf6 {[%emt 0:01:00]} 2. c4 {[%emt 0:00:30]} e6 {[%emt 0:00:30]} 3. Nf3 {[%emt 0:00:00]} d5 {[%emt 0:00:00]} 4. Nc3 {[%emt 0:00:00]} dxc4 {[%emt 0:00:00]} 5. e4 {[%emt 0:00:00][%cal Be2e4,Be4e5][%mdl 32]} b5 {[%emt 0:00:30]} 6. e5 $1 {[%emt 0:00:00]} Nd5 {[%emt 0:00:30]} 7. Nxb5 {[%emt 0:00:30]} Nb6 {[%emt 0:00:00]} 8. Be2 {[%emt 0:00:30] White is slightly better.} Nc6 {[%emt 0:00:00]} 9. Be3 {[%emt 0:00:00]} Be7 {[%emt 0:01:30]} 10. a3 {[%emt 0:01:00]} Bb7 {[%emt 0:01:30]} 11. Qc2 {[%emt 0:02:30]} Qd7 {[%emt 0:01:30]} 12. Nc3 {[%emt 0:01:30]} (12. Bxc4 $2 a6 13. Nxc7+ Qxc7 $19) 12... Na5 {[%emt 0:00:00]} 13. Rd1 {[%emt 0:01:30]} f5 {[%emt 0:00:00]} 14. exf6 {[%emt 0:02:30]} gxf6 {[%emt 0:00:30]} 15. Ne4 {[%emt 0:05:30]} Qa4 {[%emt 0:02:30]} 16. Qb1 {[%emt 0:03:30]} Nd5 {[%emt 0:06:30]} (16... O-O-O $11) 17. Bd2 {[%emt 0:04:30]} ({White should try} 17. Rc1 $14) 17... O-O-O {[%emt 0:05:30]} 18. O-O {[%emt 0:02:30]} Rhg8 {[%emt 0:00:30]} 19. Rfe1 {[%emt 0:12:30]} (19. Bxa5 $2 Nf4 20. Bb4 f5 $19 (20... Nxe2+ $2 21. Kh1 $19)) 19... Kb8 {[%emt 0:02:30]} (19... Nb3 $11 {keeps the balance.}) 20. Qc1 {[%emt 0:16:30]} (20. Bxa5 $16 {aiming for Bd2.} Qxa5 (20... Nf4 21. Ng3 $16) 21. Bxc4) 20... Rg4 {[%emt 0:21:30]} 21. Ng3 {[%emt 0:14:30]} Nb6 {[%emt 0:10:30]} 22. Bxa5 {[%emt 0:08:30]} Qxa5 {[%emt 0:00:30]} 23. Bxc4 {[%emt 0:00:30]} Nxc4 {[%emt 0:00:30]} 24. Qxc4 {[%emt 0:00:30]} Bd5 {[%emt 0:00:30]} 25. Qd3 {[%emt 0:00:00]} Rdg8 {[%emt 0:07:30]} 26. Qxh7 {[%emt 0:00:00]} (26. Nd2 $1 $16) 26... Bd6 $11 {[%emt 0:00:30]} 27. Qf7 {[%emt 0:02:30]} (27. Qd3 $11) 27... f5 $1 $15 {[%emt 0:02:30][%mdl 1024] Black has compensation.} 28. Ne5 {[%emt 0:02:16]} R4g7 {[%emt 0:09:30]} 29. Qf6 {[%emt 0:00:11] [#]} Be7 {[%emt 0:01:30]} (29... Qa4 $1 $17) 30. Qh6 $11 {[%emt 0:09:36] Prevents Rh7} Qa4 {[%emt 0:03:30]} 31. Qd2 {[%emt 0:00:50]} Bg5 {[%emt 0:02:49] This pair of bishops is nice.} 32. Qe2 {[%emt 0:04:48]} Bf6 {[%emt 0:00:40]} (32... Bh6 $11) 33. Nd3 {[%emt 0:00:49]} (33. b3 $1 $14 Qxa3 (33... Qxb3 $2 34. Rb1 $18) 34. Ra1) 33... Ka8 $2 {[%emt 0:02:49] [#]} (33... Bxd4 $11 {and Black is okay.} 34. Nf4 Bb6 35. Nxe6 (35. Nxd5 $2 exd5 36. Qf3 f4 $19) 35... Bxe6 36. Qxe6 Qc2) 34. Nf4 $1 $18 {[%emt 0:00:24]} ({Stronger than} 34. Nc5 Qc6 $11) 34... Bb3 {[%emt 0:03:11]} (34... Qd7 $142 35. Nxd5 (35. Nxe6 Re7 $16) 35... exd5) 35. Rd3 {[%emt 0:00:59]} Bc4 {[%emt 0:00:56]} 36. Qf3+ {[%emt 0:00:06] Weighted Error Value: White=0.18 (very precise) /Black=0.37.  Loses game:     	---       	Black=1      Mistake:       	White=5     	Black=5      Inaccurate:     	White=4     	Black=4      OK:         	White=10    	Black=8      Best:        	White=2     	Black=1      Strong:       	White=1     	Black=1} 1-0

[Event "10th Cesme Open-A 2024"]
[Site "Cesme"]
[Date "2024.06.30"]
[Round "9"]
[White "Annaberdiyev, Meylis"]
[Black "Altun, Arda"]
[Result "1-0"]
[ECO "B50"]
[WhiteElo "2467"]
[BlackElo "2149"]
[Annotator "TA"]
[PlyCount "109"]
[EventDate "2024.06.23"]
[EventType "swiss"]
[EventCountry "TUR"]
[SourceTitle "playchess.com"]
[Source "ChessBase"]
[SourceQuality "1"]
[TimeControl "5400+30"]

{[%evp 9,109,17,17,18,25,9,24,16,56,44,40,35,77,29,22,0,0,5,46,37,49,40,39,0,3,0,0,0,0,0,0,0,0,0,0,0,0,0,88,94,89,89,88,89,92,92,104,109,120,120,117,109,132,130,126,122,133,125,127,125,151,143,157,161,190,165,164,167,163,151,171,169,174,150,196,185,192,183,174,172,375,191,229,201,200,197,287,178,310,266,309,290,355,177,181,145,153,162,29997,29998,29998,29999]} 1. e4 {[%emt 0:01:00]} c5 {[%emt 0:10:00]} 2. Nf3 {[%emt 0:00:30]} d6 {[%emt 0:00:30]} 3. c3 {[%emt 0:00:30]} Nf6 {[%emt 0:00:30]} 4. Be2 {[%emt 0:00:00]} e6 {[%emt 0:00:30]} 5. O-O {[%emt 0:00:00]} Be7 {[%emt 0:00:30][%cal Oe8g8]} 6. Re1 {[%emt 0:02:30]} Nc6 {[%emt 0:01:30]} 7. Bb5 {[%emt 0:02:30]} Qb6 {[%emt 0:05:30]} 8. Ba4 {[%emt 0:03:30] White has an edge.} Bd7 {[%emt 0:10:30]} 9. d4 {[%emt 0:05:30]} cxd4 {[%emt 0:00:30]} 10. cxd4 {[%emt 0:00:30]} d5 {[%emt 0:00:30] [#]} 11. e5 {[%emt 0:00:30]} ({Better is} 11. exd5 $1 $16 Nxd5 12. Nc3) 11... Ne4 $11 {[%emt 0:00:30]} 12. Nc3 {[%emt 0:00:30]} Nxc3 {[%emt 0:00:30]} 13. bxc3 {[%emt 0:00:00]} Qa6 {[%emt 0:01:30][%cal Oc6e5]} 14. Bc2 {[%emt 0:03:00]} h6 {[%emt 0:05:30]} 15. Bd3 {[%emt 0:02:30]} Qa5 {[%emt 0:01:30]} 16. Bd2 {[%emt 0:00:30]} Qc7 {[%emt 0:00:00]} 17. h4 {[%emt 0:11:30]} Na5 {[%emt 0:01:00]} 18. h5 {[%emt 0:01:30]} Nc4 {[%emt 0:01:30]} 19. Rb1 {[%emt 0:01:30] Repels Nb2} Na3 {[%emt 0:06:30]} 20. Rb2 {[%emt 0:04:30]} Nc4 {[%emt 0:01:30]} 21. Bxc4 {[%emt 0:02:30]} Qxc4 {[%emt 0:01:30]} 22. Rxb7 {[%emt 0:02:30]} Qxa2 {[%emt 0:01:30]} 23. Qe2 {[%emt 0:00:30]} Rc8 {[%emt 0:02:30]} (23... a5 $11 {remains equal.}) 24. Qf1 $16 {[%emt 0:06:30] Black must now prevent Ra1. White now steadily converts the win.} Qc4 {[%emt 0:19:30]} 25. Rxa7 {[%emt 0:05:30]} Bd8 {[%emt 0:03:30]} 26. Rb1 {[%emt 0:04:30] Threatens to win with Rbb7.} Qxf1+ {[%emt 0:00:30]} 27. Kxf1 {[%emt 0:00:00]} Bc6 {[%emt 0:01:30] Inhibits Rbb7. Black is weak on the dark squares} 28. Bc1 {[%emt 0:04:00][%cal Bd2c1,Bc1a3,Ba3d6][%mdl 32] White has more active pieces.} Rc7 {[%emt 0:00:30]} 29. Raa1 {[%emt 0:01:30]} Kd7 {[%emt 0:00:30]} 30. Ba3 {[%emt 0:00:30]} Rb7 {[%emt 0:02:30]} 31. Rxb7+ {[%emt 0:02:30]} Bxb7 {[%emt 0:00:00]} 32. Bd6 {[%emt 0:00:30]} Bb6 {[%emt 0:00:00]} 33. Ke1 {[%emt 0:00:00]} Rc8 {[%emt 0:08:47]} 34. Kd2 {[%emt 0:02:00]} Rg8 {[%emt 0:01:22]} 35. g3 {[%emt 0:02:30]} g6 {[%emt 0:06:11]} 36. hxg6 {[%emt 0:03:30]} ({Much less strong is} 36. Rb1 Kc6 37. hxg6 fxg6) 36... fxg6 {[%emt 0:00:30]} 37. Rh1 {[%emt 0:00:30]} h5 {[%emt 0:01:12]} 38. Rb1 {[%emt 0:01:30]} Kc6 {[%emt 0:00:30]} 39. Ng5 {[%emt 0:00:30]} Bc8 {[%emt 0:00:00]} 40. f4 {[%emt 0:03:30]} Rg7 {[%emt 0:00:00]} 41. Nf3 {[%emt 0:03:30]} Ba6 {[%emt 0:02:31]} (41... Bd8 $16 42. Rb8 Kd7) 42. Ra1 {[%emt 0:00:40]} Bc8 {[%emt 0:01:54]} 43. Ra8 {[%emt 0:00:20]} Rg8 {[%emt 0:00:29]} 44. Ng5 {[%emt 0:04:08]} Kd7 $2 {[%emt 0:00:45]} (44... Kb7 {keeps fighting.} 45. Rb8+ Ka7 46. Rxc8 Rxc8) 45. Bc5 {[%emt 0:03:26]} (45. Nh7 $142 Rd8 46. Nf8+ Kc6 47. Nxg6) 45... Bc7 {[%emt 0:00:39]} 46. Ra7 {[%emt 0:09:08] Bd6 would now be deadly.} Kc6 {[%emt 0:00:12]} 47. Ke3 {[%emt 0:00:08]} Bd7 {[%emt 0:00:59]} (47... Bd8 $142 48. Nf7 Bc7) 48. Nf7 {[%emt 0:01:38]} Bb8 {[%emt 0:00:57]} (48... Bc8 $142 49. Kf3 Rg7) 49. Ra6+ $18 {[%emt 0:00:30]} Kb7 {[%emt 0:00:30]} 50. Rb6+ {[%emt 0:00:00]} Kc7 {[%emt 0:00:00]} 51. Rb2 {[%emt 0:00:32]} (51. Ng5 $142) 51... Kc6 {[%emt 0:00:00]} 52. Nd6 {[%emt 0:03:30]} Bc7 {[%emt 0:00:00] Inhibits Rb6+.} 53. Ra2 {[%emt 0:00:00] Against Ra8. Strongly threatening Ra6+.} Bb8 $2 {[%emt 0:00:32] [#]} (53... Bxd6 $18 54. exd6 Bc8) 54. Ra6+ {[%emt 0:00:29]} Kc7 {[%emt 0:00:02]} 55. Bb6+ {[%emt 0:00:10] Weighted Error Value: White=0.18 (very precise) /Black=0.34.  Mistake:       	White=3     	Black=6      Inaccurate:     	White=2     	Black=3      OK:         	White=23    	Black=13     Best:        	White=3     	Black=3} 1-0

[Event "10th Cesme Open-A 2024"]
[Site "Cesme"]
[Date "2024.06.30"]
[Round "9"]
[White "Durak, Can"]
[Black "Zakirov, Musa"]
[Result "1-0"]
[ECO "D27"]
[WhiteElo "2442"]
[BlackElo "2112"]
[Annotator "TA"]
[PlyCount "99"]
[EventDate "2024.06.23"]
[EventType "swiss"]
[EventCountry "TUR"]
[SourceTitle "playchess.com"]
[Source "ChessBase"]
[SourceQuality "1"]
[TimeControl "5400+30"]

{[%evp 20,99,37,32,37,30,35,19,18,14,14,3,14,16,70,74,92,35,99,103,99,46,125,123,117,108,184,172,200,176,201,196,392,373,387,364,388,364,366,356,791,758,848,830,797,670,616,623,560,427,442,437,437,416,683,670,1416,619,975,590,1642,1872,1870,1630,1792,1346,29989,1146,1146,0,29990,29991,29993,29994,29994,29992,29992,0,29994,29995,29995,29996]} 1. Nf3 {[%emt 0:08:00]} d5 {[%emt 0:01:00]} 2. e3 {[%emt 0:00:30]} Nf6 {[%emt 0:01:30]} 3. c4 {[%emt 0:00:30]} dxc4 {[%emt 0:00:00]} 4. Bxc4 {[%emt 0:00:30]} e6 {[%emt 0:00:00]} 5. Nc3 {[%emt 0:00:00]} a6 {[%emt 0:00:00]} 6. O-O {[%emt 0:00:00]} c5 {[%emt 0:01:00]} 7. d4 {[%emt 0:00:30]} b5 {[%emt 0:00:30]} 8. Bb3 {[%emt 0:00:00]} Bb7 {[%emt 0:01:30]} 9. e4 {[%emt 0:00:00]} c4 {[%emt 0:06:30]} 10. Bc2 {[%emt 0:00:30]} Be7 {[%emt 0:00:30]} 11. Qe2 {[%emt 0:02:30][%cal Od4d5]} O-O {[%emt 0:11:30]} 12. Rd1 {[%emt 0:00:00]} Nbd7 {[%emt 0:05:30]} 13. e5 {[%emt 0:05:00]} Nd5 {[%emt 0:00:30] The position is equal.} 14. Qe4 {[%emt 0:00:30][%csl Gc2][%cal Re4h7]} g6 {[%emt 0:00:30] White must now prevent ...Nxc3.} 15. Qg4 {[%emt 0:00:00]} Nxc3 {[%emt 0:17:30]} 16. bxc3 {[%emt 0:00:00]} Kg7 {[%emt 0:01:30] Dodges Bh6+} (16... Nb6 $11) 17. Ng5 $1 $14 {[%emt 0:03:30]} Bd5 {[%emt 0:00:30]} 18. h4 {[%emt 0:00:30] White is more active.} (18. a4 $16) 18... h5 {[%emt 0:04:30]} ({Black should try} 18... f5 $14 19. exf6+ Rxf6) 19. Qg3 $40 {[%emt 0:01:30][%cal Og5f7][%mdl 128] Threatens to win with Nxf7! White attacks with force.} Qe8 {[%emt 0:00:30]} 20. Nh3 {[%emt 0:01:30]} (20. a4 $16) 20... Rh8 {[%emt 0:05:30]} (20... Nb6 $14) 21. a4 {[%emt 0:00:30][%cal Ba2a4,Ba4a5][%mdl 32]} Nb6 {[%emt 0:03:30]} 22. a5 {[%emt 0:00:30]} Nd7 {[%emt 0:02:30]} (22... Na4 $16 {was necessary.}) 23. Nf4 $18 {[%emt 0:00:00]} Bb7 {[%emt 0:00:30]} 24. Be3 {[%emt 0:01:00]} Rd8 {[%emt 0:07:30]} 25. d5 {[%emt 0:01:30]} exd5 {[%emt 0:02:30]} (25... Bxd5 {keeps fighting.} 26. Nxd5 exd5) 26. Bd4 {[%emt 0:01:30] e6+ is the strong threat.} (26. Nxd5 Bxd5 27. Rxd5 Nf8 $16) 26... Nf8 {[%emt 0:06:30]} 27. e6+ {[%emt 0:00:30]} f6 {[%emt 0:00:30]} 28. Re1 {[%emt 0:00:30][%cal Bd1e1,Be1e3,Be3g3][%mdl 32]} Rh6 {[%emt 0:01:12]} 29. Re3 {[%emt 0:02:30]} Qc6 $2 {[%emt 0:02:12]} (29... Rc8 30. Rae1 Kg8) 30. Qg5 {[%emt 0:00:30] Strongly threatening Rf3.} Rd6 {[%emt 0:03:26]} 31. Rg3 {[%emt 0:03:30]} Qe8 {[%emt 0:01:21]} 32. Nxh5+ {[%emt 0:00:30]} Rxh5 {[%emt 0:03:00]} 33. Qxh5 {[%emt 0:00:30] White wants to mate with Be3.} Rxe6 {[%emt 0:00:30]} 34. Qf3 {[%emt 0:00:30]} Bd6 {[%emt 0:00:30] [#]} 35. Rf1 $1 {[%emt 0:00:30]} Bxg3 {[%emt 0:00:30]} 36. fxg3 {[%emt 0:00:30]} (36. Qxg3 Re2 $18) 36... Nd7 {[%emt 0:00:30] [#]} (36... Kg8 $142 37. h5 (37. Bxf6 Qf7 $18) 37... b4 38. cxb4 gxh5) 37. h5 $1 {[%emt 0:00:30][%mdl 512]} Ne5 {[%emt 0:05:36]} (37... Re1 38. Bxg6) 38. Qf4 {[%emt 0:00:30]} (38. Bxe5 $142 fxe5 39. Bxg6) 38... Bc8 {[%emt 0:05:15]} 39. hxg6 {[%emt 0:00:30] Bxe5 would now be deadly.} Qe7 {[%emt 0:00:48]} 40. Qh4 {[%emt 0:00:30]} Nxg6 {[%emt 0:00:38]} 41. Qg5 {[%emt 0:00:00]} Qf7 {[%emt 0:00:18]} 42. Bf5 {[%emt 0:00:00] This pair of bishops is nice. Black is weak on the dark squares} Kh7 {[%emt 0:01:10]} 43. Qh5+ {[%emt 0:00:30]} (43. Bxe6 $142 fxg5 44. Rxf7+ (44. Bxf7 Ne7 $18) 44... Kg8 45. Rg7+ (45. Bxc8 Kxf7 46. Bxa6 b4 $18) 45... Kf8 46. Bxc8 Ke8 47. Bd7+ (47. Rxg6 Ke7 48. Be5 Kd8 49. Rg8+ Ke7 50. Rg7+ Kf8 51. Be6 Ke8 52. Bf6 Kf8 53. Rg8#) 47... Kf8 48. Be6 (48. Rxg6 Ke7 49. Bxb5 Kf7 50. Rxa6 Kf8 51. Rh6 Kg8 52. a6 g4 53. a7 Kf7 54. a8=Q Ke7 55. Qe8#)) 43... Kg7 {[%emt 0:00:06]} 44. Qg5 {[%emt 0:00:30]} (44. Bxe6 $18 Bxe6 45. Qg5 (45. Bxf6+ Qxf6 46. Rxf6 Kxf6 $18)) 44... Kh7 $1 {[%emt 0:01:09]} 45. Bxe6 {[%emt 0:00:30]} Qxe6 {[%emt 0:00:15]} 46. Rxf6 {[%emt 0:00:30]} Qe1+ {[%emt 0:00:38]} 47. Rf1 {[%emt 0:00:00]} Qe8 {[%emt 0:00:23]} 48. Rf6 {[%emt 0:00:00]} Qe1+ $1 {[%emt 0:00:34]} 49. Kh2 {[%emt 0:00:00]} Qe4 {[%emt 0:00:14]} 50. Qh5+ {[%emt 0:00:00] Weighted Error Value: White=0.67/Black=0.52.  Mistake:       	White=2     	Black=7      Inaccurate:     	---       	Black=1      OK:         	White=8     	Black=6      Best:        	White=3     	Black=4      Strong:       	White=1     	---        Brilliant:      	White=1     	---} 1-0

[Event "10th Cesme Open-A 2024"]
[Site "Cesme"]
[Date "2024.06.30"]
[Round "9"]
[White "Pacher, Milan"]
[Black "Kavri, Yusuf Eren"]
[Result "1-0"]
[ECO "B67"]
[WhiteElo "2387"]
[BlackElo "2059"]
[Annotator "RC"]
[PlyCount "103"]
[EventDate "2024.06.23"]
[EventType "swiss"]
[EventCountry "TUR"]
[SourceTitle "playchess.com"]
[Source "ChessBase"]
[SourceQuality "1"]
[TimeControl "5400+30"]

1. e4 {[%emt 0:01:00]} c5 {[%emt 0:01:00]} 2. Nf3 {[%emt 0:00:00]} Nc6 {[%emt 0:00:00]} 3. d4 {[%emt 0:00:00]} cxd4 {[%emt 0:00:00]} 4. Nxd4 {[%emt 0:00:30]} Nf6 {[%emt 0:00:30]} 5. Nc3 {[%emt 0:00:00]} d6 {[%emt 0:00:30]} 6. Bg5 {[%emt 0:00:00]} e6 {[%emt 0:00:30]} 7. Qd2 {[%emt 0:00:00]} a6 {[%emt 0:00:00]} 8. O-O-O {[%emt 0:00:00]} Bd7 {[%emt 0:00:00]} 9. f3 {[%emt 0:00:00]} Be7 {[%emt 0:01:30]} 10. h4 {[%emt 0:00:00]} Nxd4 {[%emt 0:02:30]} 11. Qxd4 {[%emt 0:00:30]} Qc7 {[%emt 0:00:30]} 12. g4 {[%emt 0:03:30]} h5 {[%emt 0:00:00]} 13. gxh5 {[%emt 0:00:30]} Nxh5 {[%emt 0:00:00]} 14. Bxe7 {[%emt 0:05:30]} Kxe7 {[%emt 0:00:30]} 15. e5 {[%emt 0:00:00]} d5 {[%emt 0:03:30]} 16. Bh3 {[%emt 0:03:00]} Rac8 {[%emt 0:09:30]} 17. Bg4 {[%emt 0:00:30]} Qc4 {[%emt 0:16:30]} 18. Qb6 {[%emt 0:05:30]} Rc6 {[%emt 0:14:30]} 19. Qxb7 {[%emt 0:05:30]} d4 {[%emt 0:05:30]} 20. Qa7 {[%emt 0:03:30]} Ng3 {[%emt 0:05:30]} 21. Rh2 {[%emt 0:06:30]} Qc5 {[%emt 0:02:30]} 22. Qxc5+ {[%emt 0:02:30]} Rxc5 {[%emt 0:00:30]} 23. Ne2 {[%emt 0:00:30]} Nxe2+ {[%emt 0:00:30]} 24. Rxe2 {[%emt 0:00:30]} d3 {[%emt 0:01:30]} 25. Red2 {[%emt 0:01:30]} Rxc2+ {[%emt 0:01:30]} 26. Rxc2 {[%emt 0:00:30]} dxc2 {[%emt 0:00:00]} 27. Rh1 {[%emt 0:00:30]} Rc8 {[%emt 0:04:00]} 28. Rh2 {[%emt 0:02:30]} Rc5 {[%emt 0:01:30]} 29. f4 {[%emt 0:00:00]} Rc4 {[%emt 0:06:30]} 30. Rf2 {[%emt 0:00:00]} Bc6 {[%emt 0:04:30]} 31. b3 {[%emt 0:08:30]} Re4 {[%emt 0:00:30]} 32. Kxc2 {[%emt 0:00:30]} f6 {[%emt 0:00:48]} 33. exf6+ {[%emt 0:00:30]} Kxf6 {[%emt 0:00:12]} 34. Re2 {[%emt 0:03:30]} Rxf4 {[%emt 0:06:11]} 35. Rxe6+ {[%emt 0:00:30]} Kf7 {[%emt 0:00:00]} 36. Rxc6 {[%emt 0:00:00]} Rxg4 {[%emt 0:00:00]} 37. Rxa6 {[%emt 0:01:00]} Rxh4 {[%emt 0:00:00]} 38. Kd3 {[%emt 0:00:00]} g5 {[%emt 0:02:39]} 39. Ke3 {[%emt 0:00:00]} Rf4 {[%emt 0:00:00]} 40. Rb6 {[%emt 0:01:30]} Rf1 {[%emt 0:01:45]} 41. Ke2 {[%emt 0:02:30]} Rf4 {[%emt 0:00:36]} 42. Rc6 {[%emt 0:01:30]} Rf5 {[%emt 0:02:07]} 43. a4 {[%emt 0:01:30]} g4 {[%emt 0:02:51]} 44. Rc4 {[%emt 0:00:00]} Rf3 {[%emt 0:03:27]} 45. b4 {[%emt 0:00:00]} Ra3 {[%emt 0:00:14]} 46. b5 {[%emt 0:00:00]} g3 {[%emt 0:05:34]} 47. b6 {[%emt 0:00:00]} g2 {[%emt 0:01:00]} 48. Kf2 {[%emt 0:00:30]} Ra2+ {[%emt 0:00:16]} 49. Kg1 {[%emt 0:00:30]} Rb2 {[%emt 0:00:26]} 50. a5 {[%emt 0:00:30]} Ke6 {[%emt 0:00:00]} 51. Ra4 {[%emt 0:00:00]} Kd6 {[%emt 0:01:30]} 52. a6 {[%emt 0:00:00]} 1-0